lending/lending_fUSD_20250122
["ID","MTS","AMOUNT","RATE_DAILY","PERIOD"]
[349936947,1737521453140,-500.0,0.00020546,2]
[349936948,1737521453150,-1277.66,0.00020546,2]
[349936949,1737521453159,-500.0,0.00020546,2]
[349936950,1737521453168,-500.0,0.00020546,2]
[349936951,1737521453177,-641.07,0.00020546,2]
[349936952,1737521453186,-1971.57,0.00020546,2]
[349936953,1737521453196,-500.0,0.00020546,2]
[349936954,1737521453206,-501.02885426,0.00020546,2]
[349936955,1737521453215,-500.0,0.00020546,2]
[349936956,1737521453224,-1155.17,0.00020546,2]
[349936957,1737521453233,-500.0,0.00020546,2]
[349936958,1737521453242,-500.0,0.00020546,2]
[349936959,1737521453251,-500.0,0.00020546,2]
[349936960,1737521453260,-500.0,0.00020546,2]
[349936961,1737521453270,-500.0,0.00020546,2]
[349936962,1737521453279,-500.0,0.00020546,2]
[349936963,1737521453288,-1178.45,0.00020546,2]
[349936964,1737521453297,-500.0,0.00020546,2]
[349936965,1737521453306,-1350.78,0.00020546,2]
[349936966,1737521453316,-500.0,0.00020546,2]
[349936967,1737521453325,-500.0,0.00020546,2]
[349936968,1737521453335,-500.0,0.00020546,2]
[349936969,1737521453344,-809.35,0.00020546,2]
[349936970,1737521453353,-203.870809,0.00020546,2]
[349936971,1737521453362,-943.4,0.00020546,2]
[349936972,1737521453371,-1184.82,0.00020546,2]
[349936973,1737521453380,-1053.36,0.00020546,2]
[349936974,1737521453390,-500.0,0.00020546,2]
[349936975,1737521453399,-694.41,0.00020546,2]
[349936976,1737521453408,-549.16,0.00020546,2]
[349936977,1737521453418,-1026.01,0.00020546,2]
[349936978,1737521453427,-500.0,0.00020546,2]
[349936979,1737521453436,-500.0,0.00020546,2]
[349936980,1737521453445,-2798.02,0.00020546,2]
[349936981,1737521453455,-801.22,0.00020546,2]
[349936982,1737521453469,-2093.62,0.00020546,2]
[349936983,1737521453478,-2008.46,0.00020546,2]
[349936984,1737521453487,-500.0,0.00020546,2]
[349936985,1737521453496,-500.0,0.00020546,2]
[349936986,1737521453507,-500.0,0.00020546,2]
[349936987,1737521453516,-500.0,0.00020546,2]
[349936988,1737521453526,-500.0,0.00020546,2]
[349936989,1737521453535,-3042.29,0.00020546,2]
[349936990,1737521453546,-500.0,0.00020546,2]
[349936991,1737521453555,-500.0,0.00020546,2]
[349936992,1737521453565,-500.0,0.00020546,2]
[349936993,1737521453574,-628.21952044,0.00020546,2]
[349936994,1737521453583,-2630.2,0.00020546,2]
[349936995,1737521453592,-500.0,0.00020546,2]
[349936996,1737521453602,-962.31,0.00020546,2]
[349936997,1737521453611,-3402.39,0.00020546,2]
[349936998,1737521453620,-500.0,0.00020546,2]
[349936999,1737521453630,-200.0,0.00020546,2]
[349937000,1737521453640,-2523.78,0.00020546,2]
[349937001,1737521453650,-1173.45,0.00020546,2]
[349937002,1737521453659,-512.02591586,0.00020546,2]
[349937003,1737521453668,-410.91632481,0.00020546,2]
[349937004,1737521453677,-500.0,0.00020546,2]
[349937005,1737521453687,-797.11,0.00020546,2]
[349937006,1737521453696,-500.0,0.00020546,2]
[349937007,1737521453706,-1697.95,0.00020546,2]
[349937008,1737521453715,-500.0,0.00020546,2]
[349937009,1737521453724,-500.0,0.00020546,2]
[349937010,1737521453734,-161.833129,0.00020546,2]
[349937011,1737521453743,-6586.57,0.00020546,2]
[349937012,1737521453752,-515.62567333,0.00020546,2]
[349937013,1737521453761,-151.0,0.00020546,2]
[349937014,1737521453771,-1350.46,0.00020546,2]
[349937015,1737521453781,-500.0,0.00020546,2]
[349937016,1737521453790,-11588.89,0.00020546,2]
[349937017,1737521453799,-500.0,0.00020546,2]
[349937018,1737521453809,-1314.1,0.00020546,2]
[349937019,1737521453818,-500.0,0.00020546,2]
[349937020,1737521453827,-516.16,0.00020546,2]
[349937021,1737521453836,-1139.88,0.00020546,2]
[349937022,1737521453846,-500.0,0.00020546,2]
[349937023,1737521453855,-1236.09,0.00020546,2]
[349937024,1737521453865,-500.0,0.00020546,2]
[349937025,1737521453875,-500.0,0.00020546,2]
[349937026,1737521453884,-500.0,0.00020546,2]
[349937027,1737521453893,-151.0,0.00020546,2]
[349937028,1737521453902,-787.16,0.00020546,2]
[349937029,1737521453912,-2884.44,0.00020546,2]
[349937030,1737521453921,-1406.12,0.00020546,2]
[349937031,1737521453931,-1247.11,0.00020546,2]
[349937032,1737521453940,-6250.25,0.00020546,2]
[349937033,1737521453949,-626.44643064,0.00020546,2]
[349937034,1737521453959,-591.27,0.00020546,2]
[349937035,1737521453969,-573.94,0.00020546,2]
[349937036,1737521453979,-500.0,0.00020546,2]
[349937037,1737521453989,-2698.51,0.00020546,2]
[349937038,1737521453998,-783.35,0.00020546,2]
[349937039,1737521454008,-152.961317,0.00020546,2]
[349937040,1737521454017,-887.56,0.00020546,2]
[349937041,1737521454027,-500.0,0.00020546,2]
[349937042,1737521454036,-466.52301607,0.00020546,2]
[349937043,1737521454045,-949.61,0.00020546,2]
[349937044,1737521454054,-1045.69,0.00020546,2]
[349937045,1737521454064,-887.91,0.00020546,2]
[349937046,1737521454073,-3230.15,0.00020546,2]
[349937047,1737521454083,-897.35,0.00020546,2]
[349937048,1737521454093,-500.0,0.00020546,2]
[349937049,1737521454103,-500.0,0.00020546,2]
[349937050,1737521454113,-539.51,0.00020546,2]
[349937051,1737521454122,-3672.5,0.00020546,2]
[349937052,1737521454132,-1248.91,0.00020546,2]
[349937053,1737521454141,-508.37386542,0.00020546,2]
[349937054,1737521454151,-3018.25,0.00020546,2]
[349937055,1737521454161,-861.49,0.00020546,2]
[349937056,1737521454170,-209.11778498,0.00020546,2]
[349937057,1737521454180,-1737.46,0.00020546,2]
[349937058,1737521454190,-838.66,0.00020546,2]
[349937059,1737521454199,-500.0,0.00020546,2]
[349937060,1737521454208,-500.0,0.00020546,2]
[349937061,1737521454218,-500.0,0.00020546,2]
[349937062,1737521454227,-500.0,0.00020546,2]
[349937063,1737521454237,-534.83,0.00020546,2]
[349937064,1737521454246,-656.44,0.00020546,2]
[349937065,1737521454256,-500.0,0.00020546,2]
[349937066,1737521454265,-1057.54,0.00020546,2]
[349937067,1737521454276,-1128.04,0.00020546,2]
[349937068,1737521454285,-1305.22,0.00020546,2]
[349937069,1737521454295,-2752.53,0.00020546,2]
[349937070,1737521454304,-3633.97,0.00020546,2]
[349937071,1737521454314,-1266.4,0.00020546,2]
[349937072,1737521454323,-4392.45,0.00020546,2]
[349937073,1737521454333,-500.0,0.00020546,2]
[349937074,1737521454343,-500.0,0.00020546,2]
[349937075,1737521454353,-5162.84,0.00020546,2]
[349937076,1737521454363,-1190.61,0.00020546,2]
[349937077,1737521454372,-500.0,0.00020546,2]
[349937078,1737521454381,-1721.44,0.00020546,2]
[349937079,1737521454390,-500.0,0.00020546,2]
[349937080,1737521454400,-1458.25,0.00020546,2]
[349937081,1737521454409,-1247.16,0.00020546,2]
[349937082,1737521454418,-500.0,0.00020546,2]
[349937083,1737521454428,-500.0,0.00020546,2]
[349937084,1737521454439,-500.0,0.00020546,2]
[349937085,1737521454448,-851.98,0.00020546,2]
[349937086,1737521454458,-1841.79,0.00020546,2]
[349937087,1737521454471,-996.43,0.00020546,2]
[349937088,1737521454480,-3610.11,0.00020546,2]
[349937089,1737521454489,-1277.1,0.00020546,2]
[349937090,1737521454499,-500.0,0.00020546,2]
[349937091,1737521454509,-537.79,0.00020546,2]
[349937092,1737521454519,-500.0,0.00020546,2]
[349937093,1737521454530,-1510.79,0.00020546,2]
[349937094,1737521454540,-2282.22,0.00020546,2]
[349937095,1737521454550,-506.39,0.00020546,2]
[349937096,1737521454560,-1599.82,0.00020546,2]
[349937097,1737521454570,-1575.96,0.00020546,2]
[349937098,1737521454580,-6003.02,0.00020546,2]
[349937099,1737521454589,-500.0,0.00020546,2]
[349937100,1737521454599,-1751.53317934,0.00020546,2]
[349937101,1737521454620,-322.62682066,0.00020546,2]
[349937102,1737521454630,-500.0,0.00020546,2]
[349937103,1737521454640,-352.56061788,0.00020546,2]
[349937104,1737521454649,-500.0,0.00020546,2]
[349937105,1737521454658,-500.0,0.00020546,2]
[349937106,1737521454667,-677.31256146,0.00020546,2]
[349937107,1737521454684,-322.68743854,0.00020546,2]
[349937108,1737521454694,-2504.84,0.00020546,2]
[349937109,1737521454703,-2041.12,0.00020546,2]
[349937110,1737521454713,-945.5,0.00020546,2]
[349937111,1737521454723,-500.0,0.00020546,2]
[349937112,1737521454732,-567.62,0.00020546,2]
[349937113,1737521454741,-589.678072,0.00020546,2]
[349937114,1737521454751,-500.0,0.00020546,2]
[349937115,1737521454760,-500.0,0.00020546,2]
[349937116,1737521454770,-953.46,0.00020546,2]
[349937117,1737521454780,-589.678072,0.00020546,2]
[349937118,1737521454790,-500.0,0.00020546,2]
[349937119,1737521454800,-500.0,0.00020546,2]
[349937120,1737521454809,-500.0,0.00020546,2]
[349937121,1737521454819,-500.0,0.00020546,2]
[349937122,1737521454828,-500.0,0.00020546,2]
[349937123,1737521454838,-500.0,0.00020546,2]
[349937124,1737521454847,-2648.35,0.00020546,2]
[349937125,1737521454856,-1377.42,0.00020546,2]
[349937126,1737521454866,-771.63,0.00020546,2]
[349937127,1737521454875,-500.0,0.00020546,2]
[349937128,1737521454885,-500.0,0.00020546,2]
[349937129,1737521454895,-3297.1,0.00020546,2]
[349937130,1737521454904,-578.08,0.00020546,2]
[349937131,1737521454913,-500.0,0.00020546,2]
[349937132,1737521454921,-500.0,0.00020546,2]
[349937133,1737521454931,-500.0,0.00020546,2]
[349937134,1737521454941,-500.0,0.00020546,2]
[349937135,1737521454951,-2396.11,0.00020546,2]
[349937136,1737521454961,-1093.36,0.00020546,2]
[349937137,1737521454971,-500.0,0.00020546,2]
[349937138,1737521454980,-521.97,0.00020546,2]
[349937139,1737521454991,-1091.58,0.00020546,2]
[349937140,1737521455000,-2002.59,0.00020546,2]
[349937141,1737521455010,-1060.75,0.00020546,2]
[349937142,1737521455020,-637.85,0.00020546,2]
[349937143,1737521455030,-286.42,0.00020546,2]
[349937144,1737521455040,-735.11,0.00020546,2]
[349937145,1737521455050,-539.1,0.00020546,2]
[349937146,1737521455059,-500.0,0.00020546,2]
[349937147,1737521455068,-1558.71,0.00020546,2]
[349937148,1737521455078,-500.0,0.00020546,2]
[349937149,1737521455087,-500.0,0.00020546,2]
[349937150,1737521455098,-313.13312299,0.00020546,2]
[349937151,1737521455107,-999.68,0.00020546,2]
[349937152,1737521455117,-611.53,0.00020546,2]
[349937153,1737521455126,-596.23,0.00020546,2]
[349937154,1737521455136,-1216.6,0.00020546,2]
[349937155,1737521455145,-1881.78,0.00020546,2]
[349937156,1737521455155,-432.51,0.00020546,2]
[349937157,1737521455164,-500.0,0.00020547,2]
[349937158,1737521455174,-500.0,0.00020547,2]
[349937159,1737521455184,-633.64,0.00020547,2]
[349937160,1737521455194,-500.0,0.00020547,2]
[349937161,1737521455203,-500.0,0.00020547,2]
[349937162,1737521455212,-350.40079554,0.00020547,2]
[349937163,1737521455221,-500.0,0.00020547,2]
[349937164,1737521455230,-506.04918226,0.00020547,2]
[349937165,1737521455239,-500.0,0.00020547,2]
[349937166,1737521455249,-500.0,0.00020547,2]
[349937167,1737521455259,-500.0,0.00020547,2]
[349937168,1737521455268,-500.0,0.00020547,2]
[349937169,1737521455279,-555.50322314,0.00020547,2]
[349937170,1737521455288,-500.0,0.00020547,2]
[349937171,1737521455298,-500.0,0.00020547,2]
[349937172,1737521455307,-500.0,0.00020547,2]
[349937173,1737521455315,-500.0,0.00020547,2]
[349937174,1737521455324,-500.0,0.00020547,2]
[349937175,1737521455333,-500.0,0.00020547,2]
[349937176,1737521455343,-500.0,0.00020547,2]
[349937177,1737521455353,-500.0,0.00020547,2]
[349937178,1737521455362,-500.0,0.00020547,2]
[349937179,1737521455372,-500.0,0.00020547,2]
[349937180,1737521455382,-500.0,0.00020547,2]
[349937181,1737521455392,-500.0,0.00020547,2]
[349937182,1737521455401,-500.0,0.00020547,2]
[349937183,1737521455411,-500.0,0.00020547,2]
[349937184,1737521455421,-1078.16,0.00020547,2]
[349937185,1737521455431,-500.0,0.00020547,2]
[349937186,1737521455441,-500.0,0.00020547,2]
[349937187,1737521455451,-500.0,0.00020547,2]
[349937188,1737521455463,-500.0,0.00020547,2]
[349937189,1737521455475,-514.43118739,0.00020547,2]
[349937190,1737521455485,-500.0,0.00020547,2]
[349937191,1737521455495,-500.0,0.00020547,2]
[349937192,1737521455504,-500.0,0.00020547,2]
[349937193,1737521455514,-500.0,0.00020547,2]
[349937194,1737521455524,-151.135643,0.00020547,2]
[349937195,1737521455533,-500.0,0.00020547,2]
[349937196,1737521455543,-153.652005,0.00020547,2]
[349937197,1737521455553,-524.10613351,0.00020547,2]
[349937198,1737521455562,-500.0,0.00020547,2]
[349937199,1737521455572,-500.0,0.00020547,2]
[349937200,1737521455581,-500.0,0.00020547,2]
[349937201,1737521455591,-589.15,0.00020547,2]
[349937202,1737521455600,-500.0,0.00020547,2]
[349937203,1737521455609,-500.0,0.00020547,2]
[349937204,1737521455617,-500.0,0.00020547,2]
[349937205,1737521455626,-614.67,0.00020547,2]
[349937206,1737521455635,-500.0,0.00020547,2]
[349937207,1737521455644,-500.0,0.00020547,2]
[349937208,1737521455654,-500.0,0.00020547,2]
[349937209,1737521455664,-521.92205717,0.00020547,2]
[349937210,1737521455798,-500.0,0.00020547,2]
[349937211,1737521455808,-500.0,0.00020547,2]
[349937212,1737521455817,-523.6,0.00020547,2]
[349937213,1737521455826,-506.27291745,0.00020547,2]
[349937214,1737521455835,-500.0,0.00020547,2]
[349937215,1737521455845,-500.0,0.00020547,2]
[349937216,1737521455855,-500.0,0.00020547,2]
[349937217,1737521455864,-509.80183209,0.00020547,2]
[349937218,1737521455874,-500.0,0.00020547,2]
[349937219,1737521455883,-832.33,0.00020547,2]
[349937220,1737521455893,-500.0,0.00020547,2]
[349937221,1737521455903,-500.0,0.00020547,2]
[349937222,1737521455912,-500.0,0.00020547,2]
[349937223,1737521455922,-500.0,0.00020547,2]
[349937224,1737521455931,-500.0,0.00020547,2]
[349937225,1737521455941,-500.0,0.00020547,2]
[349937226,1737521455951,-520.75395423,0.00020547,2]
[349937227,1737521455961,-638.84,0.00020547,2]
[349937228,1737521455970,-1201.82,0.00020547,2]
[349937229,1737521455979,-500.0,0.00020547,2]
[349937230,1737521455988,-171.993042,0.00020547,2]
[349937231,1737521455998,-551.03,0.00020547,2]
[349937232,1737521456008,-500.0,0.00020547,2]
[349937233,1737521456018,-500.0,0.00020547,2]
[349937234,1737521456028,-500.0,0.00020547,2]
[349937235,1737521456038,-500.0,0.00020547,2]
[349937236,1737521456047,-1470.3,0.00020547,2]
[349937237,1737521456056,-151.0,0.00020547,2]
[349937238,1737521456066,-151.0,0.00020547,2]
[349937239,1737521456075,-500.0,0.00020547,2]
[349937240,1737521456084,-777.28,0.00020547,2]
[349937241,1737521456094,-500.0,0.00020547,2]
[349937242,1737521456104,-500.0,0.00020547,2]
[349937243,1737521456114,-500.0,0.00020547,2]
[349937244,1737521456123,-969.56,0.00020547,2]
[349937245,1737521456133,-317.23170171,0.00020547,2]
[349937246,1737521456144,-493.81897734,0.00020547,2]
[349937247,1737521456153,-500.0,0.00020547,2]
[349937248,1737521456164,-151.0,0.00020547,2]
[349937249,1737521456173,-1289.33,0.00020547,2]
[349937250,1737521456183,-500.0,0.00020547,2]
[349937251,1737521456193,-500.0,0.00020547,2]
[349937252,1737521456203,-842.38,0.00020547,2]
[349937253,1737521456212,-500.0,0.00020547,2]
[349937254,1737521456222,-881.66,0.00020547,2]
[349937255,1737521456231,-1105.48,0.00020547,2]
[349937256,1737521456242,-526.13703804,0.00020547,2]
[349937257,1737521456251,-500.0,0.00020547,2]
[349937258,1737521456261,-500.0,0.00020547,2]
[349937259,1737521456270,-543.61,0.00020547,2]
[349937260,1737521456281,-1079.7,0.00020547,2]
[349937261,1737521456290,-500.0,0.00020547,2]
[349937262,1737521456299,-500.0,0.00020547,2]
[349937263,1737521456309,-719.33,0.00020547,2]
[349937264,1737521456320,-500.0,0.00020547,2]
[349937265,1737521456329,-500.0,0.00020547,2]
[349937266,1737521456340,-500.0,0.00020547,2]
[349937267,1737521456349,-500.0,0.00020547,2]
[349937268,1737521456359,-500.0,0.00020547,2]
[349937269,1737521456368,-92.11684266,0.00020547,2]
[349937270,1737522232891,-488.64,0.00017708,2]
[349937271,1737522232914,-500.0,0.00019164,2]
[349937272,1737522232938,-351.11,0.00019346,2]
[349937273,1737522232960,-4381.26,0.00019362,2]
[349937274,1737522268051,500.0,0.00019164,2]
[349937275,1737522299684,250.0,0.0001924,2]
[349937276,1737522322117,343.2300941,0.00019164,2]
[349937277,1737522348368,2751.0,0.00019185,2]
[349937279,1737522355933,161.53,0.00019185,2]
[349937280,1737522358772,166.27,0.00010137,2]
[349937281,1737522384678,241.97,0.00019159,2]
[349937282,1737522408965,1000.0,0.00019159,2]
[349937283,1737522429864,715.72,0.00019159,2]
[349937284,1737522456808,550.0,0.00015,2]
[349937285,1737522478588,464.2,0.00017361,2]
[349937286,1737522479317,152.39,0.00019279,2]
[349937287,1737522509913,262.51,0.00019212,2]
[349937288,1737522536515,4531.62,0.00019237,2]
[349937289,1737522544970,4080.0,0.00024,120]
[349937296,1737522637113,-1842.82074556,0.00019367,2]
[349937297,1737522637125,-722.54233573,0.00019367,2]
[349937298,1737522637195,-4498.0546494,0.00019367,2]
[349937299,1737522637309,-1441.50226931,0.00019367,2]
[349937300,1737522637319,-1570.64,0.00019391,2]
[349937301,1737522637329,-464.2,0.00019625,2]
[349937302,1737522637339,-233.21,0.00019765,2]
[349937303,1737522637349,-2319.90736238,0.00019897,2]
[349937304,1737522637358,-792.58990087,0.00019897,2]
[349937305,1737522637370,-539.55445081,0.00019897,2]
[349937306,1737522637382,-987.76301071,0.00019897,2]
[349937307,1737522637391,-1733.95398929,0.00019897,2]
[349937308,1737522637418,-2859.17948062,0.00019897,2]
[349937309,1737522637427,-2392.51219597,0.00019898,2]
[349937310,1737522637436,-181.92610789,0.00019973,2]
[349937311,1737522637446,-408.42144047,0.00019973,2]
[349937312,1737522637455,-500.0,0.00019973,2]
[349937313,1737522637465,-1510.842,0.00019973,2]
[349937314,1737522637475,-1006.31451625,0.00019996,2]
[349937315,1737522637485,-926.45,0.00019996,2]
[349937316,1737522637495,-544.08,0.00019996,2]
[349937317,1737522637504,-517.34,0.00019996,2]
[349937318,1737522637515,-500.0,0.00019996,2]
[349937319,1737522637525,-3426.97,0.00019996,2]
[349937320,1737522637535,-1202.8,0.00019996,2]
[349937321,1737522637544,-1235.24,0.00019996,2]
[349937322,1737522637554,-1129.77,0.00019996,2]
[349937323,1737522637563,-898.16,0.00019996,2]
[349937324,1737522637573,-1057.20420461,0.00019996,2]
[349937325,1737522637585,-279.21579539,0.00019996,2]
[349937326,1737522637595,-1486.72,0.00019996,2]
[349937327,1737522637605,-500.0,0.00019996,2]
[349937328,1737522637614,-2196.86,0.00019996,2]
[349937329,1737522637623,-937.2,0.00019996,2]
[349937330,1737522637633,-1964.54,0.00019996,2]
[349937331,1737522637643,-2433.59,0.00019996,2]
[349937332,1737522637653,-950.84,0.00019996,2]
[349937333,1737522637663,-3194.27,0.00019996,2]
[349937334,1737522637672,-500.0,0.00019996,2]
[349937335,1737522637682,-1028.27,0.00019996,2]
[349937336,1737522637692,-500.0,0.00019996,2]
[349937337,1737522637702,-858.56,0.00019996,2]
[349937339,1737522637711,-705.72,0.00019996,2]
[349937341,1737522637721,-500.0,0.00019996,2]
[349937343,1737522637731,-500.0,0.00019996,2]
[349937345,1737522637740,-500.0,0.00019996,2]
[349937346,1737522637750,-937.22,0.00019996,2]
[349937349,1737522637760,-652.29137371,0.00019996,2]
[349937351,1737522637771,-492.18846894,0.00019996,2]
[349937353,1737522637782,-133.55015735,0.00019996,2]
[349937355,1737522637792,-332.87914304,0.00019996,2]
[349937358,1737522637810,-296.23085696,0.00019996,2]
[349937360,1737522637819,-500.0,0.00019996,2]
[349937361,1737522637829,-1998.72,0.00019996,2]
[349937362,1737522637840,-193.931485,0.00019997,2]
[349937363,1737522637854,-500.0,0.00019997,2]
[349937364,1737522637864,-500.0,0.00019997,2]
[349937365,1737522637874,-500.0,0.00019997,2]
[349937366,1737522637883,-500.0,0.00019997,2]
[349937367,1737522637894,-500.0,0.00019997,2]
[349937368,1737522637904,-500.0,0.00019997,2]
[349937369,1737522637913,-500.0,0.00019997,2]
[349937370,1737522637925,-500.0,0.00019997,2]
[349937371,1737522637934,-500.0,0.00019997,2]
[349937372,1737522637944,-500.0,0.00019997,2]
[349937373,1737522637953,-891.78,0.00019997,2]
[349937374,1737522637963,-508.65996587,0.00019997,2]
[349937375,1737522637972,-500.0,0.00019997,2]
[349937376,1737522637982,-500.0,0.00019997,2]
[349937377,1737522637992,-500.0,0.00019997,2]
[349937378,1737522638001,-1086.26,0.00019997,2]
[349937379,1737522638011,-500.0,0.00019997,2]
[349937380,1737522638021,-174.01836395,0.00019997,2]
[349937381,1737522638031,-707.79,0.00019997,2]
[349937382,1737522638041,-500.0,0.00019997,2]
[349937383,1737522638051,-505.55660813,0.00019997,2]
[349937384,1737522638060,-267.30638872,0.00019997,2]
[349937385,1737522638070,-500.0,0.00019997,2]
[349937386,1737522638080,-500.0,0.00019997,2]
[349937387,1737522638089,-504.168423,0.00019997,2]
[349937389,1737522638099,-500.0,0.00019997,2]
[349937391,1737522638109,-500.0,0.00019997,2]
[349937393,1737522638118,-500.0,0.00019997,2]
[349937395,1737522638128,-500.0,0.00019997,2]
[349937397,1737522638137,-746.99,0.00019997,2]
[349937398,1737522638147,-502.84829027,0.00019997,2]
[349937399,1737522638157,-500.0,0.00019997,2]
[349937400,1737522638167,-506.39769891,0.00019997,2]
[349937401,1737522638177,-500.0,0.00019997,2]
[349937402,1737522638187,-500.0,0.00019997,2]
[349937403,1737522638197,-500.0,0.00019997,2]
[349937404,1737522638207,-506.07451776,0.00019997,2]
[349937405,1737522638216,-500.0,0.00019997,2]
[349937406,1737522638226,-629.35,0.00019997,2]
[349937407,1737522638235,-500.0,0.00019997,2]
[349937408,1737522638245,-500.0,0.00019997,2]
[349937409,1737522638254,-534.18,0.00019997,2]
[349937410,1737522638264,-507.87231666,0.00019997,2]
[349937411,1737522638274,-509.02929634,0.00019997,2]
[349937412,1737522638284,-500.0,0.00019997,2]
[349937413,1737522638294,-553.96,0.00019997,2]
[349937414,1737522638303,-504.19820347,0.00019997,2]
[349937415,1737522638313,-500.0,0.00019997,2]
[349937416,1737522638322,-505.8313873,0.00019997,2]
[349937417,1737522638332,-510.06677776,0.00019997,2]
[349937418,1737522638342,-500.0,0.00019997,2]
[349937419,1737522638351,-513.74144362,0.00019997,2]
[349937420,1737522638361,-500.0,0.00019997,2]
[349937421,1737522638371,-508.68190567,0.00019997,2]
[349937422,1737522638382,-500.0,0.00019997,2]
[349937423,1737522638392,-500.0,0.00019997,2]
[349937424,1737522638401,-1190.05,0.00019997,2]
[349937425,1737522638411,-500.0,0.00019997,2]
[349937426,1737522638421,-500.0,0.00019997,2]
[349937427,1737522638431,-500.0,0.00019997,2]
[349937428,1737522638441,-470.704027,0.00019997,2]
[349937429,1737522638454,-452.945973,0.00019997,2]
[349937430,1737522638464,-146.74596816,0.00019997,2]
[349937431,1737522638521,-364.83403184,0.00019997,2]
[349937432,1737522638531,-500.0,0.00019997,2]
[349937433,1737522638541,-200.0,0.00019997,2]
[349937434,1737522638551,-500.0,0.00019997,2]
[349937435,1737522638561,-500.0,0.00019997,2]
[349937436,1737522638571,-500.0,0.00019997,2]
[349937437,1737522638581,-500.0,0.00019997,2]
[349937438,1737522638592,-500.0,0.00019997,2]
[349937439,1737522638602,-506.64150504,0.00019997,2]
[349937440,1737522638612,-500.0,0.00019997,2]
[349937441,1737522638622,-564.6,0.00019997,2]
[349937459,1737522638849,-1300.060953,0.00019997,2]
[349937462,1737522638862,-500.0,0.00019997,2]
[349937464,1737522638873,-500.0,0.00019997,2]
[349937466,1737522638883,-1122.62,0.00019997,2]
[349937468,1737522638893,-1319.38,0.00019997,2]
[349937470,1737522638903,-500.0,0.00019997,2]
[349937472,1737522638913,-500.0,0.00019997,2]
[349937474,1737522638924,-500.0,0.00019997,2]
[349937476,1737522638934,-500.0,0.00019997,2]
[349937478,1737522638944,-500.0,0.00019997,2]
[349937480,1737522638955,-500.0,0.00019997,2]
[349937482,1737522638964,-502.79018762,0.00019997,2]
[349937484,1737522638974,-508.89496369,0.00019997,2]
[349937486,1737522638983,-500.0,0.00019997,2]
[349937488,1737522638993,-500.0,0.00019997,2]
[349937490,1737522639002,-500.0,0.00019997,2]
[349937492,1737522639013,-1653.048488,0.00019997,2]
[349937494,1737522639023,-500.0,0.00019997,2]
[349937496,1737522639033,-518.12878978,0.00019997,2]
[349937499,1737522639042,-477.57401043,0.00019997,2]
[349937501,1737522639055,-22.42598957,0.00019997,2]
[349937503,1737522639065,-500.0,0.00019997,2]
[349937505,1737522639074,-475.97321583,0.00019997,2]
[349937507,1737522639086,-24.02678417,0.00019997,2]
[349937509,1737522639096,-500.0,0.00019997,2]
[349937511,1737522639107,-507.70141153,0.00019997,2]
[349937513,1737522639117,-156.400212,0.00019997,2]
[349937515,1737522639126,-696.21,0.00019997,2]
[349937517,1737522639135,-139.2115923,0.00019997,2]